bitfinex-derivatives/quotes_ETHF0:USTF0_20250212
["timestamp","ask_amount","ask_price","bid_price","bid_amount"]
[1739379410867,2.965,2650.0,2649.2,3.8073]
[1739379411065,0.75488,2649.3,2648.9,3.2078]
[1739379411261,4.39456715,2649.8,2648.9,3.2078]
[1739379411568,4.39456715,2650.6,2649.5,3.2078]
[1739379411775,0.75462,2650.2,2649.8,3.2078]
[1739379411957,3.2078,2650.4,2649.5,3.2078]
[1739379412164,3.2078,2650.4,2649.9,40.8]
[1739379412359,0.00565686,2650.3,2649.9,40.8]
[1739379412662,2.97265686,2650.3,2649.9,40.8]
[1739379413167,0.75468,2650.0,2649.9,40.8]
[1739379414271,6.81941804,2650.0,2649.9,0.04988]
[1739379414570,6.81941804,2650.0,2649.1,0.00565686]
[1739379414571,6.63323804,2650.0,2649.1,3.21345686]
[1739379414773,3.2078,2649.7,2649.1,0.00565686]
[1739379414968,0.7549,2649.2,2649.1,3.21345686]
[1739379415272,2.958,2649.6,2648.5,3.2078]
[1739379415273,4.39456715,2649.4,2648.5,3.2078]
[1739379415465,0.75496,2649.1,2648.5,3.2078]
[1739379415772,2.96,2649.0,2648.8,3.2078]
[1739379416170,2.96,2649.0,2648.9,3.2078]
[1739379416376,2.96,2649.0,2648.9,40.8]
[1739379416578,0.7549,2649.3,2648.9,44.0078]
[1739379416872,0.75496,2649.0,2648.9,40.8]
[1739379417065,3.70496,2649.0,2648.9,40.8]
[1739379417863,2.95,2649.0,2648.9,40.8]
[1739379418072,0.00565686,2649.2,2648.9,44.0078]
[1739379418570,19.77,2649.8,2648.9,44.0078]
[1739379418876,19.77,2649.8,2649.6,3.2078]
[1739379421276,0.6079,2651.1,2649.6,3.2078]
[1739379421478,19.771,2651.3,2650.7,3.2078]
[1739379421674,0.75435,2651.2,2650.7,3.2078]
[1739379421979,0.75439,2651.0,2650.9,40.8]
[1739379422276,0.75451,2650.6,2650.0,3.2078]
[1739379422486,3.67341,2651.0,2650.3,3.2078]
[1739379422688,2.919,2651.0,2650.7,0.00565686]
[1739379422884,0.75445,2650.8,2650.7,0.00565686]
[1739379423192,0.75445,2650.8,2650.7,40.80565686]
[1739379423485,3.65945,2650.8,2650.7,40.22679935]
[1739379423684,3.65945,2650.8,2649.7,1.1497]
[1739379423685,0.75461,2650.3,2649.9,3.2078]
[1739379424083,3.2078,2650.6,2650.2,3.2078]
[1739379424385,2.9,2650.5,2650.2,3.2078]
[1739379424585,2.9,2650.5,2650.4,40.8]
[1739379425783,0.00565686,2650.6,2650.4,41.55456]
[1739379426076,0.00565686,2650.6,2650.5,3.2078]
[1739379426481,0.75429,2651.4,2650.5,3.96231]
[1739379426681,0.75429,2651.4,2651.2,40.8]
[1739379426885,3.2078,2651.5,2651.2,40.8]
[1739379427087,2.93169516,2651.4,2651.2,40.8]
[1739379427293,0.75431,2651.3,2651.2,40.8]
[1739379427591,3.68300853,2651.3,2651.2,40.8]
[1739379427795,3.61831,2651.3,2651.2,40.8]
[1739379428284,3.68300817,2651.3,2651.2,40.8]
[1739379428480,0.75448,2650.7,2650.6,3.2078]
[1739379428681,24.16156715,2651.0,2650.3,3.2078]
[1739379428886,7.60236715,2650.6,2650.1,0.00565686]
[1739379429088,1.88598,2651.1,2650.1,0.00565686]
[1739379429089,3.2078,2651.1,2650.1,0.00565686]
[1739379429389,3.2078,2651.7,2651.0,3.2078]
[1739379429594,0.75426,2651.5,2651.1,40.8]
[1739379429781,3.2078,2651.7,2651.1,40.8]
[1739379429988,2.846,2652.0,2651.3,3.2078]
[1739379430181,0.75419,2651.7,2651.3,3.2078]
[1739379430590,0.75418,2651.8,2651.3,3.2078]
[1739379430786,2.841,2651.9,2651.6,3.2078]
[1739379430986,2.84,2652.9,2651.6,3.2078]
[1739379431191,1.1444,2653.3,2652.4,3.2078]
[1739379431386,2.84,2653.2,2652.4,3.2078]
[1739379431591,0.7539,2652.8,2652.6,0.00565686]
[1739379431792,0.75391,2652.7,2652.6,0.00565686]
[1739379431995,4.39456715,2653.0,2652.6,0.00565686]
[1739379432302,2.837,2652.9,2652.6,0.00565686]
[1739379432493,27.36836715,2653.4,2652.6,0.00565686]
[1739379432993,3.96171,2652.7,2652.6,0.00565686]
[1739379433292,3.58291,2652.7,2652.6,0.00565686]
[1739379433485,8.829,2652.7,2651.4,3.2078]
[1739379433689,0.75415,2651.9,2651.4,3.2078]
[1739379433892,2.825,2651.8,2651.4,3.2078]
[1739379434296,2.825,2651.8,2651.1,44.0078]
[1739379434497,0.75425,2651.6,2651.1,44.0078]
[1739379434795,0.00565686,2651.7,2651.2,0.00565686]
[1739379435991,0.00565686,2651.7,2651.5,3.2078]
[1739379436193,0.00565686,2651.7,2651.2,3.21345686]
[1739379436608,0.75431,2651.3,2651.2,0.00565686]
[1739379436787,2.806,2651.3,2650.7,3.2078]
[1739379437098,2.806,2651.3,2649.8,0.6001]
[1739379437099,3.96222,2650.9,2650.8,40.8]
[1739379437492,9.96222,2650.9,2650.8,40.04565686]
[1739379437696,9.96222,2650.9,2649.0,0.6001]
[1739379437697,11.09388,2650.9,2649.6,3.2078]
[1739379437898,7.60236715,2650.6,2649.6,3.2078]
[1739379438100,0.75458,2650.4,2649.9,3.2078]
[1739379438288,0.75465,2650.2,2649.8,0.00565686]
[1739379438492,0.75468,2650.0,2649.8,0.00565686]
[1739379438691,0.00565686,2650.4,2649.8,3.21345686]
[1739379439200,0.75461,2650.3,2650.2,40.8]
[1739379439895,0.00565686,2650.4,2650.2,40.8]
[1739379440100,0.75459,2650.3,2650.2,40.8]
[1739379440604,0.81931454,2650.3,2650.2,40.8]
[1739379440790,3.60131454,2650.3,2650.2,40.8]
[1739379441097,0.06472454,2650.3,2650.2,44.0078]
[1739379441298,2.778,2651.2,2650.2,44.0078]
[1739379441604,0.75449,2650.7,2650.2,44.0078]
[1739379441802,2.778,2651.2,2650.5,3.2078]
[1739379442003,5.9798,2651.5,2650.8,3.2078]
[1739379442191,19.763,2651.8,2650.8,3.2078]
[1739379442397,19.763,2651.8,2651.1,3.2078]
[1739379442598,0.00565686,2651.4,2651.1,3.2078]
[1739379443005,3.51533,2651.3,2651.1,3.2078]
[1739379443202,3.51533,2651.3,2651.0,0.00565686]
[1739379443397,0.00565686,2651.4,2651.0,0.00565686]
[1739379443597,0.00565686,2651.4,2651.1,3.2078]
[1739379444097,0.75433,2651.2,2651.1,3.2078]
[1739379444600,0.06469194,2651.2,2651.1,40.8]
[1739379444902,0.81902194,2651.2,2651.1,39.8]
[1739379445103,0.81902563,2651.2,2651.1,39.8]
[1739379445703,0.00565686,2651.4,2651.1,43.0078]
[1739379446607,0.75433,2651.2,2651.1,43.0078]
[1739379446801,0.00565686,2651.4,2651.1,39.8]
[1739379447004,0.00565686,2651.4,2651.2,3.2078]
[1739379448304,0.00565686,2651.4,2651.3,0.75431]
[1739379448505,19.763,2651.8,2651.2,9.96212]
[1739379448700,19.763,2651.8,2651.7,3.2078]
[1739379448901,19.763,2651.8,2651.7,44.0078]
[1739379449105,19.763,2651.8,2651.7,40.8]
[1739379449106,20.51716,2651.8,2651.7,40.8]
[1739379449312,20.58183966,2651.8,2651.7,40.8]
[1739379449502,33.43004681,2651.8,2651.2,3.2078]
[1739379449697,0.75439,2651.0,2650.9,3.21345686]
[1739379449905,3.53706966,2651.0,2650.9,3.21345686]
[1739379450098,3.53706966,2651.0,2650.9,40.80565686]
[1739379450303,3.53706966,2651.0,2649.5,0.5685]
[1739379450304,1.88607,2650.9,2649.9,3.2078]
[1739379450606,1.88607,2650.9,2648.8,4.39456715]
[1739379450607,4.39456715,2650.6,2649.5,3.2078]
[1739379450807,3.2078,2650.3,2649.5,3.2078]
[1739379451109,2.78072356,2650.2,2649.8,3.2078]
[1739379451307,0.75462,2650.2,2649.9,40.8]
[1739379451607,0.06471805,2650.1,2649.9,40.8]
[1739379452008,0.75464,2650.2,2649.9,40.8]
[1739379452304,0.81936895,2650.1,2649.9,40.8]
[1739379452507,0.06471895,2650.0,2649.9,40.8]
[1739379452708,0.06472492,2650.0,2649.9,40.8]
[1739379452902,0.00565686,2650.3,2649.9,40.8]
[1739379453105,0.00565686,2650.3,2650.1,3.2078]
[1739379453311,6.85398715,2651.4,2650.1,3.2078]
[1739379453312,2.701,2651.2,2650.1,3.2078]
[1739379453508,2.701,2651.2,2650.0,4.97936715]
[1739379453509,0.06469382,2651.1,2650.8,3.2078]
[1739379454009,2.7,2651.3,2650.8,3.2078]
[1739379454212,0.06468667,2651.2,2650.8,3.2078]
[1739379454411,0.81902667,2651.2,2650.8,3.2078]
[1739379454613,0.06468667,2651.1,2650.8,3.2078]
[1739379454909,0.75445,2650.8,2650.7,0.00565686]
[1739379455102,0.0646953,2650.8,2650.7,0.00565686]
[1739379455308,0.0646953,2651.2,2650.7,0.00565686]
[1739379455505,2.70565686,2651.3,2650.7,0.00565686]
[1739379455506,0.75441,2651.0,2650.7,0.00565686]
[1739379455712,2.686,2651.2,2650.9,3.2078]
[1739379456310,3.44034,2651.2,2650.9,3.2078]
[1739379456507,2.686,2651.2,2650.9,3.2078]
[1739379457018,0.00565686,2651.3,2650.9,3.2078]
[1739379457516,0.00565686,2651.3,2651.2,3.2078]
[1739379457908,0.00565686,2651.3,2651.2,44.0078]
[1739379458305,0.75996686,2651.3,2651.2,40.8]
[1739379458905,0.8246565,2651.3,2651.2,40.8]
[1739379459816,0.0703465,2651.3,2651.2,40.8]
[1739379460005,0.8246565,2651.3,2651.2,40.8]
[1739379461616,0.0703465,2651.3,2651.2,40.8]
[1739379462213,0.00565686,2651.3,2651.2,50.0078]
[1739379462414,19.77136819,2651.8,2651.2,50.0078]
[1739379462610,19.77136819,2651.8,2651.5,3.2078]
[1739379463311,20.52553819,2651.8,2651.5,3.2078]
[1739379463621,0.75419,2651.7,2651.5,3.2078]
[1739379463809,0.06467964,2651.6,2651.5,3.2078]
[1739379464015,0.75419,2651.7,2651.5,3.2078]
[1739379464219,19.77136819,2651.8,2651.2,44.0078]
[1739379464413,0.81889204,2651.7,2651.2,3.2078]
[1739379464715,0.75422,2651.6,2651.2,3.2078]
[1739379464913,19.77136819,2651.8,2651.5,44.0078]
[1739379465212,3.2078,2653.9,2651.9,3.2078]
[1739379465418,0.06465409,2653.8,2652.9,3.2078]
[1739379465614,0.75373,2653.4,2652.9,3.2078]
[1739379465915,7.60236715,2653.9,2652.9,3.2078]
[1739379466217,2.68563226,2653.8,2653.2,3.2078]
[1739379466415,0.06463226,2653.7,2653.2,3.2078]
[1739379466615,0.06463283,2653.7,2653.4,3.2078]
[1739379466809,5.8708,2654.6,2653.4,3.2078]
[1739379467013,3.2078,2654.2,2653.4,3.2078]
[1739379467719,0.06462425,2654.1,2653.4,3.2078]
[1739379467916,2.656,2654.0,2653.4,3.2078]
[1739379468112,2.653,2654.0,2653.4,3.2078]
[1739379468627,2.653,2654.0,2653.5,3.2078]
[1739379468824,4.39456715,2654.7,2653.8,3.2078]
[1739379469022,0.06461193,2654.6,2653.8,3.2078]
[1739379469316,4.39456715,2653.9,2653.5,3.2078]
[1739379469523,5.92441193,2653.8,2652.5,3.2078]
[1739379469718,4.39456715,2653.0,2652.5,3.2078]
[1739379470021,2.65,2652.9,2652.5,3.2078]
[1739379470223,2.649,2652.8,2652.5,3.21345686]
[1739379470419,4.39456715,2653.4,2652.5,3.21345686]
[1739379470723,2.644,2653.3,2652.9,3.2078]
[1739379471223,2.644,2653.3,2652.6,3.2078]
[1739379471521,2.644,2653.3,2652.9,3.2078]
[1739379472018,2.644,2653.3,2652.5,0.00565686]
[1739379472223,0.06463976,2653.2,2652.5,0.00565686]
[1739379472520,3.27243976,2653.2,2652.5,0.00565686]
[1739379472714,5.14841715,2653.0,2652.5,0.00565686]
[1739379472913,0.66893976,2652.9,2652.5,0.00565686]
[1739379473115,0.6043,2652.9,2652.5,0.00565686]
[1739379473613,4.39456715,2653.4,2652.5,0.00565686]
[1739379473819,3.2078,2653.6,2652.7,3.2078]
[1739379473820,2.68664268,2653.3,2652.7,3.2078]
[1739379474025,2.622,2653.3,2652.7,3.2078]
[1739379474415,0.6043,2653.7,2652.7,3.2078]
[1739379474725,2.68263841,2653.6,2652.7,3.96169]
[1739379475017,2.618,2653.6,2652.7,3.2078]
[1739379475226,2.67763688,2653.5,2652.7,3.2078]
[1739379475424,2.613,2653.5,2652.7,3.2078]
[1739379475718,2.613,2653.5,2653.0,3.2078]
[1739379475924,0.06463529,2653.4,2653.0,3.2078]
[1739379476824,2.599,2653.3,2652.8,40.8]
[1739379477024,0.06464311,2653.2,2652.8,40.8]
[1739379477221,2.599,2653.3,2652.8,40.8]
[1739379477414,2.599,2653.3,2653.1,3.2078]
[1739379477921,2.607,2653.6,2653.3,0.75373]
[1739379478121,0.06463094,2653.5,2653.1,3.2078]
[1739379478721,4.39456715,2653.4,2652.8,40.8]
[1739379478926,0.06464691,2653.3,2652.5,3.21345686]
[1739379479723,0.81840691,2653.3,2652.5,3.21345686]
[1739379479934,0.06464691,2653.2,2652.6,40.8]
[1739379480126,0.06464691,2653.1,2652.8,3.2078]
[1739379480428,2.597,2653.3,2652.6,40.8]
[1739379480626,2.66064552,2653.2,2652.6,40.8]
[1739379480933,0.06464552,2653.1,2652.7,3.2078]
[1739379481734,2.596,2653.2,2652.7,3.2078]
[1739379481921,0.75364,2653.7,2653.0,3.2078]
[1739379482229,3.2078,2653.2,2652.6,40.8]
[1739379482427,3.2078,2653.2,2652.5,0.00565686]
[1739379482428,4.39456715,2653.0,2652.5,0.00565686]
[1739379482734,0.75401,2652.4,2652.0,3.2078]
[1739379483032,2.65463648,2652.3,2652.0,3.2078]
[1739379483330,0.06463648,2652.2,2652.0,3.2078]
[1739379483533,2.586,2652.2,2652.0,3.2078]
[1739379483835,2.586,2652.2,2652.1,0.75408]
[1739379484129,2.591,2652.3,2652.0,3.2078]
[1739379484530,0.00565686,2652.4,2652.3,0.75402]
[1739379484730,0.00565686,2652.4,2652.3,3.96182]
[1739379485233,0.75366,2653.6,2652.3,50.0078]
[1739379485435,25.28366715,2653.8,2652.3,50.0078]
[1739379485436,20.8891,2653.8,2653.1,3.96157]
[1739379485630,2.64563957,2653.7,2653.1,3.96157]
[1739379485930,0.06463957,2653.6,2653.1,3.96158]
[1739379486142,0.06463957,2653.6,2653.1,3.2078]
[1739379486529,0.06463957,2653.6,2653.4,3.2078]
[1739379486734,2.64163957,2653.5,2653.1,3.21345686]
[1739379486933,2.577,2653.5,2653.1,3.21345686]
[1739379487137,2.577,2653.5,2653.2,0.75375]
[1739379487430,22.321,2653.8,2653.4,3.2078]
[1739379487629,0.06462529,2653.7,2653.4,3.2078]
[1739379487830,2.63462529,2653.7,2653.4,3.2078]
[1739379488028,19.749,2653.8,2653.7,0.75362]
[1739379488233,19.749,2653.8,2653.7,3.96142]
[1739379488531,2.565,2654.5,2653.7,3.2078]
[1739379488834,0.75352,2654.1,2653.4,3.2078]
[1739379489037,3.2078,2654.3,2653.1,0.00565686]
[1739379489038,0.75363,2653.7,2653.1,0.00565686]
[1739379489227,2.63361307,2653.6,2653.1,0.00565686]
[1739379489435,0.75377,2653.2,2653.1,0.00565686]
[1739379489636,0.81838307,2653.2,2653.1,0.00565686]
[1739379490128,6.06461307,2653.2,2652.4,0.5912]
[1739379490332,4.39456715,2653.0,2652.3,3.2078]
[1739379490636,0.75395,2652.6,2652.0,44.0078]
[1739379490934,0.754,2652.4,2651.7,3.2078]
[1739379491134,0.75409,2652.1,2651.7,3.2078]
[1739379491326,0.0646557,2652.0,2651.8,40.8]
[1739379491541,0.75407,2652.2,2651.8,40.80565686]
[1739379491734,0.06467226,2652.1,2651.8,40.80565686]
[1739379491931,2.559,2652.0,2651.8,40.80565686]
[1739379492131,0.00565686,2652.3,2651.9,3.2078]
[1739379493240,2.62766498,2652.2,2651.9,3.2078]
[1739379493440,0.81874498,2652.1,2651.8,40.80565686]
[1739379493642,3.31706,2652.2,2651.8,40.80565686]
[1739379493841,0.06466939,2652.1,2651.8,40.80565686]
[1739379494037,0.06466945,2652.0,2651.8,40.80565686]
[1739379494537,0.06466945,2651.9,2651.8,40.80565686]
[1739379494732,0.06466945,2652.0,2651.8,40.80565686]
[1739379495039,2.61466945,2651.9,2651.8,40.80565686]
[1739379495939,2.55,2651.9,2651.8,40.80565686]
[1739379496341,0.81881145,2651.9,2651.8,40.80565686]
[1739379496536,2.60467145,2651.9,2651.8,40.80565686]
[1739379496739,3.35881145,2651.9,2651.8,40.80565686]
[1739379497044,2.60467145,2651.9,2651.8,40.80565686]
[1739379497346,3.35881145,2651.9,2651.8,40.80565686]
[1739379497642,3.35881877,2651.9,2651.8,40.80565686]
[1739379497838,8.60467877,2651.9,2651.2,3.2078]
[1739379498042,0.06467877,2651.8,2651.2,3.2078]
[1739379498239,0.75422,2651.7,2651.2,3.2078]
[1739379498542,3.34889877,2651.6,2651.3,40.8]
[1739379498738,0.06467877,2651.5,2651.3,40.8]
[1739379498931,2.53,2651.6,2651.3,40.8]
[1739379499445,0.75429,2651.4,2651.2,3.2078]
[1739379499643,3.28422,2651.6,2651.2,3.2078]
[1739379499832,0.0646822,2651.5,2651.3,40.8]
[1739379500037,2.53,2651.6,2651.3,40.8]
[1739379500236,0.06468177,2651.5,2651.3,40.8]
[1739379500434,0.06468177,2651.5,2651.2,3.2078]
[1739379500638,2.539,2651.6,2651.2,3.2078]
[1739379501038,2.539,2651.6,2651.3,40.8]
[1739379501239,0.06468252,2651.5,2651.3,40.8]
[1739379501443,0.06468252,2651.5,2651.3,41.55428]
[1739379501634,2.535,2651.8,2651.3,40.8]
[1739379501841,4.39456715,2652.6,2651.7,3.2078]
[1739379502040,0.064665,2652.2,2652.0,3.2078]
[1739379502245,0.00565686,2652.3,2652.0,3.2078]
[1739379502444,0.00565686,2652.3,2652.1,0.75406]
[1739379502747,0.00565686,2652.3,2652.1,0.6074]
[1739379503748,0.00565686,2652.3,2652.0,3.2078]
[1739379506246,0.75407,2652.2,2652.0,3.2078]
[1739379506542,0.00565686,2652.3,2652.1,40.8]
[1739379507341,0.00565686,2652.3,2652.0,3.2078]
[1739379507535,0.75408,2652.1,2652.0,3.2078]
[1739379507743,0.75405,2652.2,2652.0,3.2078]
[1739379508043,0.75434,2651.2,2650.6,3.2078]
[1739379508245,3.2078,2651.9,2650.9,3.2078]
[1739379508448,2.504,2651.9,2651.6,3.2078]
[1739379508744,0.75428,2651.4,2651.1,3.2078]
[1739379508945,21.63823,2652.1,2651.1,3.2078]
[1739379508946,3.2078,2651.7,2651.1,3.2078]
[1739379509146,2.505,2651.8,2651.4,3.2078]
[1739379509340,0.00565686,2651.7,2651.5,0.5946]
[1739379509539,0.00565686,2651.7,2651.6,3.2078]
[1739379510255,0.00565686,2651.7,2651.6,44.0078]
[1739379510551,20.5071,2652.1,2651.6,44.0078]
[1739379510745,2.494,2652.0,2651.6,44.0078]
[1739379511245,6.27985715,2652.0,2651.1,0.00565686]
[1739379511451,0.75429,2651.4,2651.1,0.00565686]
[1739379512053,0.75433,2651.2,2651.1,0.00565686]
[1739379512243,3.21345686,2651.8,2651.1,3.21345686]
[1739379512444,0.00565686,2651.8,2651.1,3.21345686]
[1739379512646,0.00565686,2651.8,2651.1,0.00565686]
[1739379512855,0.7543,2651.4,2651.1,3.21345686]
[1739379513044,2.476,2651.3,2651.1,3.21345686]
[1739379513350,3.23033,2651.3,2651.1,0.00565686]
[1739379513545,0.75433,2651.2,2651.1,0.00565686]
[1739379514253,3.23032,2651.3,2651.1,0.00565686]
[1739379514644,2.464,2651.7,2651.2,3.2078]
[1739379514846,0.75433,2651.2,2651.1,0.00565686]
[1739379515147,3.96213,2651.2,2651.1,0.00565686]
[1739379515346,4.02682576,2651.2,2651.1,0.00565686]
[1739379515551,13.66706291,2651.2,2650.3,0.5966]
[1739379515850,0.75456,2650.5,2649.9,3.2078]
[1739379516047,0.7546,2650.3,2649.9,3.2078]
[1739379516247,2.464,2650.3,2649.9,3.2078]
[1739379516744,0.00565686,2650.5,2649.9,3.21345686]
[1739379516948,2.465,2651.3,2650.2,3.2078]
[1739379517145,1.88541,2651.9,2650.6,3.2078]
[1739379517452,0.75435,2651.2,2650.6,3.2078]
[1739379517644,2.464,2651.1,2650.6,3.2078]
[1739379518149,2.46965686,2651.1,2650.6,3.2078]
[1739379518550,0.00565686,2651.1,2651.0,3.2078]
[1739379518947,3.2078,2651.8,2651.0,3.2078]
[1739379519148,3.2078,2651.8,2651.1,40.8]
[1739379519149,6.92524921,2651.7,2651.1,40.8]
[1739379519446,0.75433,2651.2,2651.1,40.8]
[1739379519843,3.2078,2651.8,2651.1,40.8]
[1739379520044,0.5916,2652.7,2651.1,40.8]
[1739379520045,0.75405,2652.2,2651.6,3.2078]
[1739379520358,0.75405,2652.2,2651.1,40.8]
[1739379520359,0.75429,2651.4,2651.1,44.0078]
[1739379520652,0.00565686,2651.7,2651.6,0.00565686]
[1739379521152,0.75984686,2651.7,2651.6,0.00565686]
[1739379521555,0.00565686,2651.7,2651.6,0.00565686]
[1739379521852,2.453,2652.1,2651.6,0.00565686]
[1739379522054,2.453,2652.1,2651.7,3.2078]
[1739379522354,2.453,2652.1,2651.6,0.60835686]
[1739379522653,0.75419,2651.7,2651.6,0.60835686]
[1739379522847,0.75419,2651.7,2651.6,0.00565686]
[1739379523447,0.81886911,2651.7,2651.6,0.00565686]
[1739379523954,0.06467911,2651.7,2651.6,0.00565686]
[1739379524154,2.445,2651.8,2651.6,0.00565686]
[1739379524351,0.8188679,2651.7,2651.6,0.00565686]
[1739379524656,0.0646779,2651.7,2651.6,0.00565686]
[1739379524956,0.8188679,2651.7,2651.6,0.00565686]
[1739379525149,0.0646779,2651.7,2651.6,0.00565686]
[1739379525348,0.8188679,2651.7,2651.6,0.00565686]
[1739379527852,0.0646779,2651.7,2651.6,0.00565686]
[1739379528047,5.6198,2651.9,2651.6,0.00565686]
[1739379528254,5.6198,2651.9,2651.0,0.5659]
[1739379528255,0.75434,2651.2,2651.0,0.5659]
[1739379528456,2.411,2651.2,2651.0,0.5659]
[1739379528854,3.2078,2651.7,2651.1,3.2078]
[1739379529058,5.6148,2652.0,2651.4,3.2078]
[1739379529359,0.75422,2651.6,2651.1,1.1583]
[1739379529549,0.75422,2651.6,2651.4,0.00565686]
[1739379529946,0.75425,2651.5,2651.4,0.00565686]
[1739379530359,0.81893411,2651.5,2651.4,0.00565686]
[1739379531055,0.06468411,2651.5,2651.0,3.7737]
[1739379531260,0.75436,2651.1,2651.0,3.2078]
[1739379531553,3.2078,2651.4,2651.0,3.2078]
[1739379531759,0.06469079,2651.3,2650.7,40.8]
[1739379531955,0.75433,2651.2,2650.7,40.8]
[1739379532154,0.75433,2651.2,2650.7,40.80565686]
[1739379532351,3.2078,2651.4,2650.7,40.80565686]
[1739379532559,0.75434,2651.2,2650.7,40.80565686]
[1739379533053,0.7544,2651.0,2650.7,40.80565686]
[1739379533260,3.2078,2651.4,2650.7,40.80565686]
[1739379533461,0.7544,2651.0,2650.7,40.80565686]
[1739379533661,3.2078,2650.8,2650.7,40.80565686]
[1739379533856,0.75445,2650.8,2650.7,40.80565686]
[1739379534665,0.75465,2650.2,2649.9,3.2078]
[1739379535167,0.75476,2649.8,2649.1,3.8112]
[1739379535363,3.91070456,2649.9,2649.1,4.3757]
[1739379535564,3.2078,2650.5,2649.6,3.2078]
[1739379535759,3.96236,2650.5,2650.1,3.2078]
[1739379535965,0.00565686,2650.3,2649.6,3.2078]
[1739379536270,0.00565686,2650.3,2649.9,3.2078]
[1739379536769,0.00565686,2650.3,2649.6,3.91070456]
[1739379536770,0.75463,2650.2,2649.6,3.2078]
[1739379537275,0.00565686,2650.3,2649.6,3.2078]
[1739379537276,0.75466,2650.1,2649.6,3.2078]
[1739379537462,0.00565686,2650.3,2649.3,3.2078]
[1739379537770,0.06471645,2650.2,2649.5,3.2078]
[1739379537972,0.75477,2649.7,2649.5,3.2078]
[1739379538162,0.75479,2649.6,2649.5,3.2078]
[1739379538770,0.75485,2649.4,2649.3,0.6078]
[1739379539173,6.28770456,2649.9,2649.3,0.6078]
[1739379539174,2.377,2649.9,2649.3,0.6078]
[1739379539372,3.13172,2649.9,2649.6,3.2078]
[1739379539878,2.377,2649.9,2649.6,3.2078]
[1739379540477,0.75473,2649.8,2649.6,3.2078]
[1739379540678,0.75476,2649.7,2649.6,3.2078]
[1739379541080,2.377,2649.9,2649.6,44.0078]
[1739379541773,3.13172,2649.9,2649.6,44.0078]
[1739379541976,2.377,2649.9,2649.6,44.0078]
[1739379542177,0.00565686,2650.3,2649.6,44.0078]
[1739379542378,1.185,2654.7,2649.6,44.0078]
[1739379542379,0.75443,2650.9,2650.3,0.75457]
[1739379542681,3.2078,2651.3,2650.8,3.2078]
[1739379542869,3.2078,2651.3,2650.4,1.1431]
[1739379542870,3.91070456,2651.1,2650.4,1.1431]
[1739379543076,0.7547,2650.0,2649.7,3.2078]
[1739379543284,0.75473,2649.8,2649.6,40.8]
[1739379543584,3.21345686,2650.1,2649.6,40.80565686]
[1739379543783,0.75469,2650.0,2649.6,40.80565686]
[1739379543981,0.75468,2650.0,2649.6,40.80565686]
[1739379544183,0.7547,2650.0,2649.6,40.80565686]
[1739379544385,0.00565686,2650.1,2649.6,40.80565686]
[1739379544679,0.75476,2649.7,2649.6,40.80565686]
[1739379544878,3.96256,2649.7,2649.6,40.80565686]
[1739379545080,4.02729141,2649.7,2649.6,0.00565686]
[1739379545276,3.91070456,2649.6,2649.1,3.2078]
[1739379545479,3.91070456,2649.3,2648.9,40.8]
[1739379545676,2.45973141,2649.2,2648.9,44.0078]
[1739379545876,2.395,2649.2,2648.9,44.0078]
[1739379546883,3.2078,2649.9,2649.1,0.75493]
[1739379547081,3.2078,2649.9,2649.5,3.2078]
[1739379547277,0.00565686,2650.1,2649.8,3.2078]
[1739379547478,0.06472428,2650.0,2649.9,40.8]
[1739379547782,0.00565686,2650.1,2649.9,42.5364]
[1739379547979,2.395,2650.7,2649.9,43.2911]
[1739379548177,2.393,2651.1,2650.1,3.2078]
[1739379548382,2.45870016,2651.0,2650.4,3.2078]
[1739379548688,0.06469719,2650.9,2650.4,3.2078]
[1739379548885,3.97540175,2650.9,2650.4,3.2078]
[1739379549189,0.75456,2650.5,2650.4,0.00565686]
[1739379549781,0.00565686,2650.9,2650.4,0.00565686]
[1739379549987,0.00565686,2650.9,2650.8,3.2078]
[1739379550784,0.00565686,2650.9,2650.8,44.0078]
[1739379551586,0.00565686,2650.9,2650.8,40.8]
[1739379551889,0.00565686,2650.9,2650.4,0.00565686]
[1739379552187,2.38965686,2650.9,2650.5,40.8]
[1739379552692,0.00565686,2650.9,2650.7,3.2078]
[1739379552892,0.00565686,2650.9,2650.8,0.5729]
[1739379553094,0.00565686,2650.9,2650.8,1.1798]
[1739379553587,0.00565686,2650.9,2650.8,41.9798]
[1739379554289,0.00565686,2650.9,2650.8,42.73425]
[1739379554490,0.00565686,2650.9,2650.8,41.9798]
[1739379554681,19.766,2651.5,2650.9,0.7544]
[1739379554887,0.75422,2651.6,2651.1,3.2078]
[1739379555088,0.75416,2651.9,2651.4,3.2078]
[1739379555291,0.75416,2651.9,2651.1,3.2078]
[1739379555591,0.75417,2651.8,2651.2,0.75432]
[1739379555795,0.00565686,2651.8,2651.2,0.75432]
[1739379556091,0.00565686,2651.8,2651.4,3.2078]
[1739379556292,0.75983686,2651.8,2651.4,3.2078]
[1739379556490,0.00565686,2651.8,2651.4,3.2078]
[1739379556796,0.7539,2652.8,2652.0,0.7541]
[1739379557095,0.75391,2652.7,2652.5,3.2078]
[1739379557289,0.75391,2652.7,2652.1,0.6059]
[1739379557481,0.75387,2652.9,2652.2,3.96184]
[1739379557787,0.75389,2652.8,2652.3,0.00565686]
[1739379558290,2.363,2652.8,2652.3,0.00565686]
[1739379558594,3.2078,2652.6,2652.3,0.00565686]
[1739379558782,2.363,2652.8,2652.3,0.00565686]
[1739379558986,2.363,2652.8,2652.4,40.8]
[1739379559493,3.96166,2652.9,2652.4,40.8]
[1739379559695,3.11288,2652.8,2652.4,40.8]
[1739379559888,2.359,2652.8,2652.4,40.8]
[1739379560087,2.359,2652.8,2652.3,3.21345686]